fUST/lending_fUST_20250607
["ID","MTS","AMOUNT","RATE_DAILY","PERIOD"]
[364826277,1749261034441,-413.1220304,0.00019341,2]
[364826278,1749261034451,-440.0,0.00019341,2]
[364826279,1749261034460,-440.0,0.00019341,2]
[364826280,1749261034470,-440.0,0.00019341,2]
[364826281,1749261034480,-440.0,0.00019341,2]
[364826282,1749261034489,-422.53180636,0.00019341,2]
[364826283,1749261034499,-440.0,0.00019341,2]
[364826284,1749261034510,-440.0,0.00019341,2]
[364826285,1749261034520,-440.0,0.00019341,2]
[364826286,1749261034531,-440.0,0.00019341,2]
[364826287,1749261034542,-421.05379579,0.00019341,2]
[364826288,1749261034552,-440.0,0.00019341,2]
[364826289,1749261034562,-440.0,0.00019341,2]
[364826290,1749261034572,-440.0,0.00019341,2]
[364826291,1749261034583,-440.0,0.00019341,2]
[364826292,1749261034592,-440.0,0.00019341,2]
[364826293,1749261034602,-440.0,0.00019341,2]
[364826294,1749261034615,-504.96187525,0.00019341,2]
[364826295,1749261034626,-440.0,0.00019341,2]
[364826296,1749261034636,-440.0,0.00019341,2]
[364826297,1749261034646,-440.0,0.00019341,2]
[364826298,1749261034655,-440.0,0.00019341,2]
[364826299,1749261034665,-440.0,0.00019341,2]
[364826300,1749261034675,-440.0,0.00019341,2]
[364826301,1749261034685,-440.0,0.00019341,2]
[364826302,1749261034695,-440.0,0.00019341,2]
[364826303,1749261034706,-440.0,0.00019341,2]
[364826304,1749261034717,-440.0,0.00019341,2]
[364826305,1749261034726,-440.0,0.00019341,2]
[364826306,1749261034737,-440.0,0.00019341,2]
[364826307,1749261034747,-440.0,0.00019341,2]
[364826308,1749261034758,-440.0,0.00019341,2]
[364826309,1749261034768,-440.0,0.00019341,2]
[364826310,1749261034778,-581.88648129,0.00019341,2]
[364826311,1749261034787,-440.0,0.00019341,2]
[364826312,1749261034797,-440.0,0.00019341,2]
[364826313,1749261034807,-433.30704138,0.00019341,2]
[364826314,1749261034816,-440.0,0.00019341,2]
[364826315,1749261034826,-440.0,0.00019341,2]
[364826316,1749261034835,-530.0,0.00019341,2]
[364826317,1749261034845,-440.0,0.00019341,2]
[364826318,1749261034855,-440.0,0.00019341,2]
[364826319,1749261034864,-400.0,0.00019341,2]
[364826320,1749261034874,-440.0,0.00019341,2]
[364826321,1749261034884,-402.25407639,0.00019341,2]
[364826322,1749261034893,-401.4667242,0.00019341,2]
[364826323,1749261034903,-440.0,0.00019341,2]
[364826324,1749261034913,-440.0,0.00019341,2]
[364826325,1749261034923,-440.0,0.00019341,2]
[364826326,1749261034932,-400.48691736,0.00019341,2]
[364826327,1749261034942,-440.0,0.00019341,2]
[364826328,1749261034952,-440.0,0.00019341,2]
[364826329,1749261034962,-467.75420564,0.00019341,2]
[364826330,1749261034972,-440.0,0.00019341,2]
[364826331,1749261034982,-401.43830184,0.00019341,2]
[364826332,1749261034992,-440.0,0.00019341,2]
[364826333,1749261035002,-439.21044197,0.00019341,2]
[364826334,1749261035012,-440.0,0.00019341,2]
[364826335,1749261035022,-440.0,0.00019341,2]
[364826336,1749261035032,-440.0,0.00019341,2]
[364826337,1749261035042,-440.0,0.00019341,2]
[364826338,1749261035051,-440.0,0.00019341,2]
[364826339,1749261035061,-230.5100804,0.00019341,2]
[364826340,1749261035071,-440.0,0.00019341,2]
[364826341,1749261035082,-440.0,0.00019341,2]
[364826342,1749261035092,-440.0,0.00019341,2]
[364826343,1749261035101,-440.0,0.00019341,2]
[364826344,1749261035111,-497.94526164,0.00019341,2]
[364826345,1749261035121,-440.0,0.00019341,2]
[364826346,1749261035131,-304.34219222,0.00019341,2]
[364826347,1749261035140,-440.0,0.00019341,2]
[364826348,1749261035151,-440.0,0.00019341,2]
[364826349,1749261035161,-440.0,0.00019341,2]
[364826350,1749261035170,-440.0,0.00019341,2]
[364826351,1749261035180,-440.0,0.00019341,2]
[364826352,1749261035190,-440.0,0.00019341,2]
[364826353,1749261035200,-440.0,0.00019341,2]
[364826354,1749261035210,-440.0,0.00019341,2]
[364826355,1749261035219,-440.0,0.00019341,2]
[364826356,1749261035229,-440.0,0.00019341,2]
[364826357,1749261035238,-440.0,0.00019341,2]
[364826358,1749261035248,-440.0,0.00019341,2]
[364826359,1749261035258,-400.0,0.00019341,2]
[364826360,1749261035268,-440.0,0.00019341,2]
[364826361,1749261035277,-440.0,0.00019341,2]
[364826362,1749261035287,-440.0,0.00019341,2]
[364826363,1749261035297,-226.62461223,0.00019341,2]
[364826364,1749261035306,-440.0,0.00019341,2]
[364826365,1749261035315,-441.29656364,0.00019341,2]
[364826366,1749261035325,-440.0,0.00019341,2]
[364826367,1749261035335,-440.0,0.00019341,2]
[364826368,1749261035344,-537.3994521,0.00019341,2]
[364826369,1749261035353,-400.81974777,0.00019341,2]
[364826370,1749261035362,-400.60088349,0.00019341,2]
[364826371,1749261035372,-440.0,0.00019341,2]
[364826372,1749261035382,-440.0,0.00019341,2]
[364826373,1749261035393,-440.0,0.00019341,2]
[364826374,1749261035403,-440.0,0.00019341,2]
[364826375,1749261035413,-562.56,0.00019341,2]
[364826376,1749261035422,-440.0,0.00019341,2]
[364826377,1749261035431,-440.0,0.00019341,2]
[364826378,1749261035441,-440.0,0.00019341,2]
[364826379,1749261035450,-440.0,0.00019341,2]
[364826380,1749261035460,-404.75571464,0.00019341,2]
[364826381,1749261035470,-440.0,0.00019341,2]
[364826382,1749261035479,-440.0,0.00019341,2]
[364826383,1749261035492,-492.39522411,0.00019343,2]
[364826385,1749261035501,-411.73644108,0.00019343,2]
[364826386,1749261035511,-411.76118182,0.00019343,2]
[364826387,1749261035521,-438.08302831,0.00019343,2]
[364826388,1749261035532,-432.50040156,0.00019343,2]
[364826389,1749261035542,-471.72677644,0.00019343,2]
[364826390,1749261035551,-433.00350893,0.00019343,2]
[364826391,1749261035560,-430.71940068,0.00019343,2]
[364826392,1749261035571,-444.55263749,0.00019343,2]
[364826393,1749261035580,-440.0,0.00019343,2]
[364826394,1749261035590,-440.0,0.00019343,2]
[364826395,1749261035599,-440.0,0.00019343,2]
[364826396,1749261035610,-440.0,0.00019343,2]
[364826397,1749261035620,-440.0,0.00019343,2]
[364826398,1749261035630,-451.83420103,0.00019343,2]
[364826399,1749261035639,-440.0,0.00019343,2]
[364826400,1749261035649,-382.19884251,0.00019343,2]
[364826401,1749261035659,-440.0,0.00019343,2]
[364826402,1749261035669,-440.0,0.00019343,2]
[364826403,1749261035678,-674.92,0.00019343,2]
[364826404,1749261035687,-440.0,0.00019343,2]
[364826405,1749261035698,-448.29244261,0.00019343,2]
[364826406,1749261035707,-500.0,0.00019344,2]
[364826407,1749261035717,-500.0,0.00019344,2]
[364826408,1749261035727,-500.0,0.00019344,2]
[364826409,1749261035736,-286.48492125,0.00019346,2]
[364826410,1749261035746,-500.0,0.00019346,2]
[364826411,1749261035756,-500.0,0.00019346,2]
[364826412,1749261035766,-500.0,0.00019346,2]
[364826413,1749261035775,-500.0,0.00019346,2]
[364826414,1749261035785,-500.0,0.00019346,2]
[364826415,1749261035794,-440.0,0.00019346,2]
[364826416,1749261035804,-500.0,0.00019346,2]
[364826417,1749261035814,-570.5937577,0.00019346,2]
[364826418,1749261035823,-446.19156026,0.00019347,2]
[364826419,1749261035834,-431.80912616,0.00019347,2]
[364826420,1749261035843,-431.53774449,0.00019347,2]
[364826421,1749261035853,-405.65621785,0.00019347,2]
[364826422,1749261035862,-431.5132175,0.00019347,2]
[364826423,1749261035872,-301.93009256,0.00019347,2]
[364826424,1749261035882,-404.55637636,0.00019347,2]
[364826425,1749261035892,-433.77031789,0.00019347,2]
[364826426,1749261035901,-434.56671572,0.00019347,2]
[364826427,1749261035911,-436.68388811,0.00019347,2]
[364826428,1749261035920,-430.94797033,0.00019347,2]
[364826429,1749261035930,-432.42281114,0.00019347,2]
[364826430,1749261035939,-436.55150078,0.00019347,2]
[364826431,1749261035949,-432.08168693,0.00019347,2]
[364826432,1749261035959,-434.08880575,0.00019347,2]
[364826433,1749261035969,-509.67719039,0.00019347,2]
[364826434,1749261035978,-430.54587506,0.00019347,2]
[364826435,1749261035988,-431.87341158,0.00019347,2]
[364826436,1749261035997,-431.43714734,0.00019347,2]
[364826437,1749261036007,-508.33826635,0.00019347,2]
[364826438,1749261036016,-434.12480026,0.00019347,2]
[364826439,1749261036026,-431.69371702,0.00019347,2]
[364826440,1749261036035,-433.05211555,0.00019347,2]
[364826441,1749261036045,-431.86703201,0.00019347,2]
[364826442,1749261036055,-430.48495409,0.00019347,2]
[364826443,1749261036064,-431.58388889,0.00019347,2]
[364826444,1749261036074,-441.9266325,0.00019347,2]
[364826445,1749261036083,-430.69717445,0.00019347,2]
[364826446,1749261036093,-431.08169671,0.00019347,2]
[364826447,1749261036103,-430.99715749,0.00019347,2]
[364826448,1749261036113,-435.27522361,0.00019347,2]
[364826449,1749261036122,-444.94816125,0.00019347,2]
[364826450,1749261036132,-157.53990983,0.00019347,2]
[364826451,1749261036142,-433.27902373,0.00019347,2]
[364826452,1749261036151,-561.52438046,0.00019347,2]
[364826453,1749261036161,-402.05958728,0.00019347,2]
[364826454,1749261036171,-433.57637751,0.00019347,2]
[364826455,1749261036181,-437.23110236,0.00019347,2]
[364826456,1749261036191,-433.45412754,0.00019347,2]
[364826457,1749261036200,-401.03746964,0.00019347,2]
[364826458,1749261036210,-432.77219796,0.00019347,2]
[364826459,1749261036219,-434.26448438,0.00019347,2]
[364826460,1749261036229,-440.58024889,0.00019347,2]
[364826461,1749261036239,-435.54132485,0.00019347,2]
[364826462,1749261036248,-433.39394935,0.00019347,2]
[364826463,1749261036258,-353.42976818,0.00019347,2]
[364826464,1749261036268,-273.60239431,0.00019347,2]
[364826465,1749261036278,-403.60221422,0.00019347,2]
[364826466,1749261036287,-436.87573301,0.00019347,2]
[364826467,1749261036297,-432.13069235,0.00019347,2]
[364826468,1749261036306,-447.78286119,0.00019347,2]
[364826469,1749261036316,-432.94113476,0.00019347,2]
[364826470,1749261036325,-574.44612814,0.00019347,2]
[364826471,1749261036334,-431.42141217,0.00019347,2]
[364826472,1749261036344,-454.52325501,0.00019347,2]
[364826473,1749261036353,-438.63139874,0.00019347,2]
[364826474,1749261036363,-430.86302446,0.00019347,2]
[364826475,1749261036373,-439.90365183,0.00019347,2]
[364826476,1749261036383,-431.50755589,0.00019347,2]
[364826477,1749261036394,-454.96584179,0.00019347,2]
[364826478,1749261036416,-431.88411282,0.00019347,2]
[364826479,1749261036426,-440.0,0.00019347,2]
[364826480,1749261036436,-403.39376004,0.00019347,2]
[364826481,1749261036446,-454.78703099,0.00019347,2]
[364826482,1749261036455,-440.84882111,0.00019347,2]
[364826483,1749261036466,-445.24983414,0.00019347,2]
[364826484,1749261036476,-441.68644418,0.00019347,2]
[364826485,1749261036486,-151.0,0.00019347,2]
[364826486,1749261036495,-181.590715,0.00019347,2]
[364826487,1749261036505,-403.15632688,0.00019347,2]
[364826488,1749261036515,-432.4842793,0.00019347,2]
[364826489,1749261036525,-440.0,0.00019347,2]
[364826490,1749261036537,-447.8115728,0.00019347,2]
[364826491,1749261036546,-446.20317163,0.00019347,2]
[364826492,1749261036556,-447.19437444,0.00019347,2]
[364826493,1749261036566,-452.07239791,0.00019347,2]
[364826494,1749261036576,-440.0,0.00019347,2]
[364826495,1749261036587,-397.32141899,0.00019347,2]
[364826496,1749261036597,-471.92302248,0.00019347,2]
[364826497,1749261036607,-451.81901005,0.00019347,2]
[364826498,1749261036619,-460.84224477,0.00019347,2]
[364826499,1749261036629,-416.59489392,0.00019347,2]
[364826500,1749261036639,-445.10405475,0.00019347,2]
[364826501,1749261036649,-151.736237,0.00019347,2]
[364826502,1749261036658,-445.02547371,0.00019347,2]
[364826503,1749261036668,-445.43699812,0.00019347,2]
[364826504,1749261036677,-381.83058984,0.00019347,2]
[364826505,1749261036687,-452.3771604,0.00019347,2]
[364826506,1749261036696,-449.90095503,0.00019347,2]
[364826507,1749261036706,-517.55925777,0.00019347,2]
[364826508,1749261036716,-424.35969805,0.00019347,2]
[364826509,1749261036726,-453.95498932,0.00019347,2]
[364826510,1749261036735,-448.450749,0.00019347,2]
[364826511,1749261036745,-452.55226197,0.00019347,2]
[364826512,1749261036755,-448.17331613,0.00019347,2]
[364826513,1749261036765,-453.81146938,0.00019347,2]
[364826514,1749261036775,-442.04301424,0.00019347,2]
[364826515,1749261036784,-449.00367424,0.00019347,2]
[364826516,1749261036795,-451.51252493,0.00019347,2]
[364826517,1749261036805,-441.56817655,0.00019347,2]
[364826518,1749261036815,-448.87508366,0.00019347,2]
[364826519,1749261036825,-454.84849249,0.00019347,2]
[364826520,1749261036834,-151.0,0.00019347,2]
[364826521,1749261036844,-452.41015574,0.00019347,2]
[364826522,1749261036854,-447.52300432,0.00019347,2]
[364826523,1749261036864,-442.67691666,0.00019347,2]
[364826524,1749261036874,-448.19903023,0.00019347,2]
[364826525,1749261036883,-448.93825895,0.00019347,2]
[364826526,1749261036893,-448.58211001,0.00019347,2]
[364826527,1749261036903,-320.81505774,0.00019347,2]
[364826528,1749261036913,-433.25925889,0.00019347,2]
[364826529,1749261036924,-447.06274394,0.00019347,2]
[364826530,1749261036934,-472.43780122,0.00019347,2]
[364826531,1749261036944,-450.53246322,0.00019347,2]
[364826532,1749261036954,-578.1184531,0.00019347,2]
[364826533,1749261036964,-445.0608656,0.00019347,2]
[364826534,1749261036974,-398.16473429,0.00019347,2]
[364826535,1749261036984,-449.63821807,0.00019347,2]
[364826536,1749261036996,-403.59422886,0.00019347,2]
[364826537,1749261037006,-399.00894129,0.00019347,2]
[364826538,1749261037016,-442.24266937,0.00019347,2]
[364826539,1749261037027,-450.0270934,0.00019347,2]
[364826540,1749261037037,-454.04357258,0.00019347,2]
[364826541,1749261037047,-553.0923118,0.00019347,2]
[364826542,1749261037058,-444.93911525,0.00019347,2]
[364826543,1749261037068,-455.69721839,0.00019347,2]
[364826544,1749261037078,-434.1373684,0.00019347,2]
[364826545,1749261037088,-446.4346969,0.00019347,2]
[364826546,1749261037098,-454.50844793,0.00019347,2]
[364826547,1749261037108,-453.39244281,0.00019347,2]
[364826548,1749261037123,-445.7258514,0.00019347,2]
[364826549,1749261037133,-451.30879404,0.00019347,2]
[364826550,1749261037143,-517.8397852,0.00019347,2]
[364826551,1749261037152,-448.02517345,0.00019347,2]
[364826552,1749261037162,-450.37628081,0.00019347,2]
[364826553,1749261037172,-445.95705933,0.00019347,2]
[364826554,1749261037182,-151.0,0.00019347,2]
[364826555,1749261037192,-151.0,0.00019347,2]
[364826556,1749261037202,-440.0,0.00019347,2]
[364826557,1749261037211,-456.86657142,0.00019347,2]
[364826558,1749261037223,-455.62056445,0.00019347,2]
[364826559,1749261037233,-443.70327596,0.00019347,2]
[364826560,1749261037244,-451.98576184,0.00019347,2]
[364826561,1749261037254,-400.43593132,0.00019347,2]
[364826562,1749261037264,-410.10484616,0.00019347,2]
[364826563,1749261037274,-448.6867393,0.00019347,2]
[364826564,1749261037285,-400.37327848,0.00019347,2]
[364826565,1749261037297,-449.89053784,0.00019347,2]
[364826566,1749261037307,-476.66068614,0.00019347,2]
[364826567,1749261037319,-447.30910901,0.00019347,2]
[364826568,1749261037329,-448.09590612,0.00019347,2]
[364826569,1749261037340,-561.40013119,0.00019347,2]
[364826570,1749261037352,-440.0,0.00019347,2]
[364826572,1749261037535,-440.0,0.00019347,2]
[364826573,1749261037547,-520.11823522,0.00019347,2]
[364826574,1749261037556,-440.0,0.00019347,2]
[364826575,1749261037566,-151.0,0.00019347,2]
[364826576,1749261037576,-165.445311,0.00019347,2]
[364826577,1749261037589,-440.0,0.00019347,2]
[364826579,1749261037599,-440.0,0.00019347,2]
[364826580,1749261037608,-440.0,0.00019347,2]
[364826581,1749261037618,-440.0,0.00019347,2]
[364826582,1749261037628,-440.0,0.00019347,2]
[364826584,1749261037637,-440.0,0.00019347,2]
[364826586,1749261037647,-440.0,0.00019347,2]
[364826588,1749261037656,-440.0,0.00019347,2]
[364826590,1749261037666,-443.885315,0.00019347,2]
[364826592,1749261037675,-440.0,0.00019347,2]
[364826593,1749261037685,-440.0,0.00019347,2]
[364826594,1749261037695,-227.507471,0.00019347,2]
[364826595,1749261037705,-440.0,0.00019347,2]
[364826596,1749261037714,-440.0,0.00019347,2]
[364826597,1749261037724,-440.0,0.00019347,2]
[364826598,1749261037733,-154.708013,0.00019348,2]
[364826600,1749261037743,-512.07290831,0.00019459,2]
[364826601,1749261037753,-503.69882206,0.00019497,2]
[364826602,1749261037765,-216.71828827,0.00019507,2]
[364826603,1749261037775,-604.40767208,0.00019529,2]
[364826604,1749261037784,-502.45305231,0.00019529,2]
[364826605,1749261037794,-501.05458876,0.00019533,2]
[364826606,1749261037804,-501.73556016,0.00019533,2]
[364826607,1749261037814,-638.85,0.00019607,3]
[364826608,1749261037824,-2629.2,0.00019607,3]
[364826610,1749261037834,-2629.2,0.00019607,3]
[364826611,1749261037843,-2629.2,0.00019607,3]
[364826613,1749261037853,-2629.2,0.00019607,3]
[364826615,1749261037862,-2629.2,0.00019607,3]
[364826616,1749261037872,-2629.2,0.00019607,3]
[364826617,1749261037881,-2629.2,0.00019607,3]
[364826618,1749261037890,-425.89,0.0001961,3]
[364826619,1749261037900,-212.94,0.0001961,3]
[364826620,1749261037910,-851.77,0.00019612,3]
[364826621,1749261037919,-444.8526988,0.00019613,2]
[364826622,1749261037929,-459.4111007,0.00019613,2]
[364826623,1749261037939,-461.30529598,0.00019613,2]
[364826624,1749261037948,-426.33990556,0.00019613,2]
[364826625,1749261037958,-419.25212563,0.00019613,2]
[364826627,1749261037968,-413.31332264,0.00019613,2]
[364826629,1749261037977,-446.08034981,0.00019613,2]
[364826630,1749261037987,-440.0,0.00019613,2]
[364826632,1749261037996,-459.51262156,0.00019613,2]
[364826634,1749261038005,-440.0,0.00019613,2]
[364826636,1749261038015,-440.0,0.00019613,2]
[364826638,1749261038024,-440.0,0.00019613,2]
[364826640,1749261038034,-405.68139221,0.00019613,2]
[364826642,1749261038043,-440.0,0.00019613,2]
[364826644,1749261038053,-445.1878028,0.00019613,2]
[364826645,1749261038062,-410.0,0.00019613,2]
[364826646,1749261038072,-440.0,0.00019613,2]
[364826647,1749261038081,-440.0,0.00019613,2]
[364826648,1749261038091,-440.0,0.00019613,2]
[364826649,1749261038100,-458.08433621,0.00019613,2]
[364826650,1749261038110,-487.24,0.00019613,2]
[364826651,1749261038120,-427.31823343,0.00019614,2]
[364826652,1749261038129,-448.04461982,0.00019614,2]
[364826653,1749261038142,-444.85814718,0.00019614,2]
[364826654,1749261038153,-452.04043646,0.00019614,2]
[364826655,1749261038163,-450.67533988,0.00019614,2]
[364826656,1749261038174,-445.26765604,0.00019614,2]
[364826657,1749261038183,-450.03948844,0.00019614,2]
[364826658,1749261038193,-447.06314238,0.00019614,2]
[364826659,1749261038203,-444.22767857,0.00019614,2]
[364826660,1749261038212,-450.89775717,0.00019614,2]
[364826661,1749261038222,-395.0211342,0.00019614,2]
[364826662,1749261038232,-471.2556979,0.00019614,2]
[364826663,1749261038242,-410.90472607,0.00019614,2]
[364826664,1749261038252,-451.45857086,0.00019614,2]
[364826665,1749261038262,-440.0,0.00019614,2]
[364826666,1749261038272,-450.01911832,0.00019614,2]
[364826667,1749261038281,-514.60029393,0.00019614,2]
[364826668,1749261038291,-451.52589943,0.00019614,2]
[364826669,1749261038300,-452.77037957,0.00019614,2]
[364826670,1749261038310,-443.42681461,0.00019614,2]
[364826671,1749261038320,-452.31014979,0.00019614,2]
[364826672,1749261038330,-451.53776522,0.00019614,2]
[364826673,1749261038339,-451.70162783,0.00019614,2]
[364826674,1749261038349,-579.56898753,0.00019614,2]
[364826675,1749261038358,-440.0,0.00019614,2]
[364826676,1749261038368,-461.29421577,0.00019614,2]
[364826677,1749261038377,-481.63817616,0.00019614,2]
[364826678,1749261038387,-487.99517447,0.00019614,2]
[364826679,1749261038397,-467.3690744,0.00019614,2]
[364826680,1749261038408,-429.48946999,0.00019614,2]
[364826681,1749261038417,-448.13180627,0.00019614,2]
[364826682,1749261038428,-212.27492552,0.00019614,2]
[364826683,1749261038437,-466.69974524,0.00019614,2]
[364826684,1749261038447,-391.88871876,0.00019614,2]
[364826685,1749261038456,-483.06337725,0.00019614,2]
[364826686,1749261038466,-447.13966432,0.00019614,2]
[364826687,1749261038475,-451.4432613,0.00019614,2]
[364826688,1749261038485,-450.33889853,0.00019614,2]
[364826689,1749261038506,-417.95333078,0.00019614,2]
[364826690,1749261038517,-362.41787715,0.00019614,2]
[364826691,1749261038527,-440.0,0.00019614,2]
[364826692,1749261038539,-557.37358022,0.00019614,2]
[364826693,1749261038549,-442.61235914,0.00019614,2]
[364826694,1749261038559,-471.88621975,0.00019614,2]
[364826695,1749261038569,-398.16444686,0.00019614,2]
[364826696,1749261038580,-444.17771019,0.00019614,2]
[364826697,1749261038590,-352.38088535,0.00019614,2]
[364826698,1749261038600,-479.54717188,0.00019614,2]
[364826699,1749261038610,-458.6845005,0.00019614,2]
[364826700,1749261038621,-449.72913841,0.00019614,2]
[364826701,1749261038631,-426.3752987,0.00019614,2]
[364826702,1749261038641,-479.08189107,0.00019614,2]
[364826703,1749261038651,-443.48202224,0.00019614,2]
[364826704,1749261038661,-440.0,0.00019614,2]
[364826705,1749261038671,-436.53277494,0.00019614,2]
[364826706,1749261038682,-223.42549555,0.00019614,2]
[364826707,1749261038692,-433.90590467,0.00019614,2]
[364826708,1749261038702,-428.24726638,0.00019614,2]
[364826709,1749261038712,-535.48886895,0.00019614,2]
[364826710,1749261038722,-426.15868171,0.00019614,2]
[364826711,1749261038732,-440.0,0.00019614,2]
[364826712,1749261038742,-432.54676234,0.00019614,2]
[364826713,1749261038752,-458.12042016,0.00019614,2]
[364826714,1749261038762,-440.0,0.00019614,2]
[364826715,1749261038773,-456.07010764,0.00019615,2]
[364826716,1749261038785,-446.78407633,0.00019615,2]
[364826717,1749261038795,-445.43210993,0.00019615,2]
[364826718,1749261038805,-451.00242938,0.00019615,2]
[364826719,1749261038816,-447.88645956,0.00019615,2]
[364826720,1749261038826,-423.41187378,0.00019615,2]
[364826721,1749261038838,-444.97038461,0.00019615,2]
[364826722,1749261038850,-456.73939596,0.00019615,2]
[364826723,1749261038859,-443.63703906,0.00019615,2]
[364826724,1749261038871,-450.30529972,0.00019615,2]
[364826725,1749261038882,-451.32250767,0.00019615,2]
[364826726,1749261038892,-452.64040379,0.00019615,2]
[364826727,1749261038902,-445.80583644,0.00019615,2]
[364826728,1749261038912,-449.66147759,0.00019615,2]
[364826729,1749261038923,-459.26458333,0.00019615,2]
[364826730,1749261038934,-443.0325248,0.00019615,2]
[364826731,1749261038943,-456.98160023,0.00019615,2]
[364826732,1749261038955,-447.99546015,0.00019615,2]
[364826733,1749261038966,-435.29281176,0.00019615,2]
[364826734,1749261038976,-427.61446334,0.00019615,2]
[364826735,1749261038987,-426.82006458,0.00019615,2]
[364826736,1749261038997,-466.21575557,0.00019615,2]
[364826737,1749261039008,-448.93407965,0.00019615,2]
[364826738,1749261039017,-466.68465224,0.00019615,2]
[364826739,1749261039027,-443.3597072,0.00019615,2]
[364826740,1749261039037,-426.45851502,0.00019615,2]
[364826741,1749261039047,-428.2421214,0.00019615,2]
[364826742,1749261039057,-454.22698516,0.00019615,2]
[364826743,1749261039066,-463.45636844,0.00019615,2]
[364826744,1749261039076,-440.0,0.00019615,2]
[364826745,1749261039086,-459.04047185,0.00019615,2]
[364826746,1749261039096,-445.77011188,0.00019615,2]
[364826747,1749261039106,-460.41920565,0.00019615,2]
[364826748,1749261039116,-446.23501872,0.00019615,2]
[364826749,1749261039126,-425.45492536,0.00019615,2]
[364826750,1749261039135,-447.79515385,0.00019615,2]
[364826751,1749261039145,-465.11616461,0.00019615,2]
[364826752,1749261039157,-467.02109625,0.00019615,2]
[364826753,1749261039166,-445.77162394,0.00019615,2]
[364826754,1749261039176,-446.63060599,0.00019615,2]
[364826755,1749261039186,-445.66768082,0.00019615,2]
[364826756,1749261039196,-499.78633244,0.00019615,2]
[364826757,1749261039207,-459.01997338,0.00019615,2]
[364826758,1749261039219,-444.17797646,0.00019615,2]
[364826759,1749261039228,-443.65418512,0.00019615,2]
[364826760,1749261039239,-447.08396126,0.00019615,2]
[364826761,1749261039249,-273.15705704,0.00019615,2]
[364826762,1749261039260,-445.96398332,0.00019615,2]
[364826763,1749261039271,-446.45042494,0.00019615,2]
[364826764,1749261039280,-451.69102895,0.00019615,2]
[364826765,1749261039290,-462.37350785,0.00019615,2]
[364826766,1749261039299,-444.3259228,0.00019615,2]
[364826767,1749261039308,-442.3389121,0.00019615,2]
[364826768,1749261039318,-447.1561275,0.00019615,2]
[364826769,1749261039327,-469.55265576,0.00019615,2]
[364826770,1749261039337,-444.62863285,0.00019615,2]
[364826771,1749261039347,-446.50019975,0.00019615,2]
[364826772,1749261039356,-449.77396606,0.00019615,2]
[364826773,1749261039366,-445.74291937,0.00019615,2]
[364826774,1749261039376,-470.20377955,0.00019615,2]
[364826775,1749261039388,-456.1115708,0.00019615,2]
[364826776,1749261039398,-474.49756661,0.00019615,2]
[364826777,1749261039408,-443.18235246,0.00019615,2]
[364826778,1749261039417,-400.0,0.00019615,2]
[364826779,1749261039428,-363.7130681,0.00019615,2]
[364826780,1749261039439,-447.17318257,0.00019615,2]
[364826781,1749261039449,-450.05991265,0.00019615,2]
[364826782,1749261039463,-460.04103358,0.00019615,2]
[364826783,1749261039474,-422.5784026,0.00019615,2]
[364826784,1749261039485,-475.08017301,0.00019615,2]
[364826785,1749261039495,-451.2594546,0.00019615,2]
[364826786,1749261039508,-443.6973224,0.00019615,2]
[364826787,1749261039517,-444.56584623,0.00019615,2]
[364826788,1749261039527,-571.52,0.00019615,2]
[364826789,1749261039541,-465.74491104,0.00019615,2]
[364826790,1749261039551,-459.14375898,0.00019615,2]
[364826791,1749261039561,-440.0,0.00019615,2]
[364826793,1749261039572,-250.4467015,0.00019615,2]
[364826794,1749261039683,-189.5532985,0.00019615,2]
[364826795,1749261039694,-444.92879582,0.00019615,2]
[364826796,1749261039705,-440.0,0.00019615,2]
[364826797,1749261039714,-562.56,0.00019615,2]
[364826798,1749261039724,-50.40363218,0.00019615,2]